Cogmind - Beta 14 @@@ ROGUE MODE // 2025.05.01 @ 11:11:36 Player: BVrutally Odd Result: Smashed by cave-in Performance ------------- Evolutions (0) 0 Regions Visited (0) 0 Robots Destroyed (4) 20 Value Destroyed (73) 73 Prototype IDs (0) 0 Alien Tech Used (0) 0 Bonus (0) 0 TOTAL SCORE: 93 Bonus ------- None Cogmind --------- Core Integrity 0/250 Matter 300/300 Energy 100/100 System Corruption 10% Temperature Warm (176) Movement Core (150) Ox2 Location -11/Scrapyard Parts ------- > --- POWER (1) -------- (None) > --- PROPULSION (2) --- Light Treads Combat Airjet > --- UTILITY (2) ------ Small Storage Unit > --- WEAPON (2) ------- Medium Laser > --- INVENTORY (8) ---- Light Ion Engine Light Ion Engine Light Treads Aluminum Leg Aluminum Leg Wheel Peak State ------------ > --- POWER ------------ Ion Engine > --- PROPULSION ------- Light Treads Combat Airjet > --- UTILITY ---------- Small Storage Unit Improved Terrain Scanner > --- WEAPON ----------- Medium Laser Light Assault Rifle > --- INVENTORY -------- Light Ion Engine Light Ion Engine Light Treads Aluminum Leg Aluminum Leg Wheel [Rating: 13] Favorites ----------- Power Ion Engine Engine Ion Engine Propulsion Light Treads Treads Light Treads Hover Unit Combat Airjet Utility Small Storage Unit Device Improved Terrain Scanner Storage Small Storage Unit Weapon Medium Laser Energy Gun Medium Laser Ballistic Gun Light Assault Rifle Build | -11 ------- Run | Yrd Slots Evolved . | . Power . | . Propulsion . | . Utility . | . Weapon . | . Parts Attached 9 | 9 Power 1 | 1 Engine 1 | 1 Core . | . Reactor . | . Propulsion 3 | 3 Treads 2 | 2 Leg . | . Wheel . | . Hover 1 | 1 Flight . | . Utility 2 | 2 Device 1 | 1 Storage 1 | 1 Processor . | . Hackware . | . Protection . | . Artifact . | . Weapon 3 | 3 Energy Gun 2 | 2 Energy Cannon . | . Ballistic Gun 1 | 1 Ballistic Cannon . | . Launcher . | . Special Weapon . | . Impact Weapon . | . Slashing Weapon . | . Piercing Weapon . | . Special Melee Weapon . | . Unidentified Prototypes . | . Parts Lost 4 | 4 Power 1 | 1 Propulsion . | . Utility 1 | 1 Weapon 2 | 2 Highest Loss Streak 2 | 2 To Critical Strikes . | . Average Slot Usage (%) . | . Peak Build Rating 13 | 13 Average Rating 8 | 8 On Entrance . | . Naked Turns . | . Heaviest Build 14 | 14 Greatest Support 40 | 40 Greatest Overweight (x) 4 | 4 Average Overweight (x) 2 | 2 Largest Inventory Capacity 8 | 8 Average Capacity 7 | 7 Most Carried 7 | 7 Average Carried 4 | 4 Final Capacity 8 | 8 Final Carried 6 | 6 Class Distribution -------------------- None Dominant Class ---------------- None Resources | -11 ----------- Run | Yrd Matter Collected 276 | 276 Remotely . | . Salvage Created 91 | 91 Parts 6 | 6 Haulers Intercepted . | . Recyclers Shooed . | . Parts Field Recycled . | . Retrieved Matter . | . Parts Self-Destructed . | . Prevented . | . Kills | -11 ------- Run | Yrd Combat Hostiles Destroyed 1 | 1 Melee 1 | 1 Classes Destroyed 3 | 3 Tunneler 2 | 2 Recycler 1 | 1 Demolisher 1 | 1 Best Kill Streak 1 | 1 Combat Bots Only 1 | 1 Max Kills in Single Turn 1 | 1 Gunslinging . | . Exploded . | . Melee 1 | 1 Uniques/NPCs Destroyed . | . Combat | -11 -------- Run | Yrd Hostile Shots Fired 7 | 7 Missed 1 | 1 Damage Taken 630 | 630 Core 306 | 306 Absorbed by Shields . | . Core Remaining (%) . | . Volleys Fired 8 | 8 Largest 2 | 2 Hottest 70 | 70 Shots Fired 16 | 16 Gun 16 | 16 Cannon . | . Launcher . | . Special . | . Kinetic 8 | 8 Thermal 8 | 8 Explosive . | . Electromagnetic . | . Robot Hit Streak 8 | 8 Robot Miss Streak 1 | 1 Penetration Max . | . Secondary Targets . | . Shots Hit Robots 9 | 9 Core Hits 6 | 6 Critical Kills . | . Critical Parts Destroyed . | . Critical Strikes 2 | 2 Burn 2 | 2 Melee Attacks . | . Impact . | . Slashing . | . Piercing . | . Sneak Attacks . | . Combat Hostiles . | . Follow-up Attacks . | . Damage Inflicted 112 | 112 Guns 111 | 111 Cannons . | . Explosions . | . Melee . | . Ramming 1 | 1 Kinetic 38 | 38 Thermal 73 | 73 Explosive . | . Electromagnetic . | . Impact . | . Slashing . | . Piercing . | . Highest Corruption 6 | 6 Average Corruption 6 | 6 Corruption Purged . | . Corruption Blocked . | . Effects 1 | 1 Heat Flow Errors 1 | 1 Overload Shots . | . Overflow Damage . | . Projectiles . | . Explosions . | . Melee . | . Knockbacks . | . Impact . | . Kinetic . | . Secondary . | . Self-Inflicted Damage . | . Shots . | . Rammed 5 | 5 Targets Rammed 5 | 5 Kicked . | . Crushed . | . Highest Temperature 236 | 236 Average Temperature 48 | 48 Received Heat Transfer . | . Siege Activations . | . Robots Corrupted . | . Combat Hostiles . | . Parts Fried . | . Impact Corruptions . | . Robots Melted . | . Combat Hostiles . | . Parts Melted . | . Heat Transferred 370 | 370 Parts Sabotaged . | . Parts Stolen . | . Parts Stripped . | . Power Chain Reactions . | . Alert | -11 ------- Run | Yrd Peak Influence 35 | 35 Initial . | . Average 3 | 3 Maximum Alert Level . | . Low Security (%) 100 | 100 Level 1 . | . Level 2 . | . Level 3 . | . Level 4 . | . Level 5 . | . High Security . | . Max Security . | . Squads Dispatched . | . Investigation . | . Extermination . | . Reinforcement . | . Assault . | . Garrison . | . Intercept . | . Searches Triggered . | . Construction Impeded . | . Haulers Reinforced . | . Active Scanning Responses . | . Cargo Convoy Interrupts . | . Stealth | -11 --------- Run | Yrd Distress Signals . | . Communications Jammed . | . Distress Signals . | . Times Spotted 2 | 2 Peak Tracking Total 2 | 2 Tactical Retreats . | . Traps | -11 ------- Run | Yrd Traps Triggered . | . Indirectly . | . Trap Hack Attempts . | . Triggered . | . Disarmed . | . Reprogrammed . | . Reused . | . Traps Extracted . | . Installed . | . Triggered . | . Machines | -11 ---------- Run | Yrd Machines Disabled . | . Max in Single Turn . | . Machines Repaired . | . Machines Dismantled . | . Machines Sabotaged . | . Overloaded Fab Kills . | . Hacking | -11 --------- Run | Yrd Machines Accessed . | . Terminals . | . Fabricators . | . Repair Stations . | . Recycling Units . | . Scanalyzers . | . Garrison Access . | . Total Hacks . | . Successful . | . Failed . | . Catastrophic . | . Database Lockouts . | . Manual . | . Terminals . | . Fabricators . | . Repair Stations . | . Recycling Units . | . Scanalyzers . | . Garrison Access . | . Terminal Hacks . | . Fabricator Hacks . | . Repair Station Hacks . | . Recycling Unit Hacks . | . Scanalyzer . | . Garrison Access Hacks . | . Unauthorized Hacks . | . Terminals . | . Fabricators . | . Repair Stations . | . Recycling Units . | . Scanalyzers . | . Garrison Access . | . Data Cores Recovered . | . Used . | . Hacking Detections . | . Full Trace Events . | . Feedback Events . | . Feedback Blocked . | . Robot Schematics Acquired . | . Robots Built . | . Authchips . | . Time . | . Total Robot Build Rating . | . Part Schematics Acquired . | . Parts Built . | . Authchips . | . Time . | . Total Part Build Rating . | . Parts Repaired . | . Time . | . Parts Recycled . | . Recycled Matter . | . Retrieved Matter . | . Retrieved Components . | . Parts Scanalyzed . | . Part Schematics Acquired . | . Parts Damaged . | . Bothacking | -11 ------------ Run | Yrd Used RIF Installer . | . Robots Hacked . | . Non-combat . | . Combat . | . Robot Hacks Applied . | . Relay Couplers Released . | . Fabnet Peak Effective % . | . Robots Rewired . | . Allies Hacked . | . Hacks Repelled . | . Allies | -11 -------- Run | Yrd Total Allies . | . Largest Group . | . Highest-Rated Group . | . Highest-Rated Ally . | . Total Orders . | . Ally Attacks . | . Total Damage . | . Kills . | . Allies Corrupted . | . Allies Melted . | . Intel | -11 ------- Run | Yrd Robot Analysis Total . | . Derelict Logs Recovered . | . Drone Launches . | . Drone Recoveries . | . Exploration | -11 ------------- Run | Yrd Turns Passed 11179 | 11179 Spaces Moved 1793 | 1793 Core 1203 | 1203 Treads 590 | 590 Legs . | . Wheels . | . Hover . | . Flight . | . Fastest Speed 50 | 50 Average Speed 218 | 218 Slowest Speed 250 | 250 Overloaded Moves . | . Propulsion Burnouts . | . Robots Hopped . | . Cave-ins Triggered 2 | 2 Exploration Rate (%) 94 | 94 Regions Visited . Branch Regions . Pre-discovered Areas . | . Known Exits Taken . | . Unknown Exits Taken . | . Scrap Searched . | . Spaces Dug . | . Terrain Destroyed . | . Melee . | . Projectile . | . AOE . | . Terrain Rammed . | . Walls Destroyed . | . Machines Disabled . | . Actions | -11 --------- Run | Yrd Total 9028 | 9028 Wait 7207 | 7207 Move 1791 | 1791 Hop . | . Pick Up 7 | 7 Fast Attach 7 | 7 Attach 1 | 1 Detach . | . Swap 1 | 1 Drop . | . Fire 8 | 8 Melee . | . Ram . | . Kick . | . Crush 5 | 5 Escape Stasis 1 | 1 Rewire . | . Trap . | . Miscellaneous . | . Route ------- -11/Scrapyard (discovered 1 exit: [*Mat]) History --------- Turn | Location | Event 2565 | -11/Scrapyard | Assembled infested the area 2953 | -11/Scrapyard | Discovered new exit (range 14) 2961 | -11/Scrapyard | Core integrity fell below 50% 11145 | -11/Scrapyard | Crushed by falling debris 11146 | -11/Scrapyard | Core integrity fell below 20% 11180 | -11/Scrapyard | Crushed by falling debris 11180 | -11/Scrapyard | Smashed by cave-in Last Messages --------------- 07122_ Acquired 65 matter. 07152_ Acquired 7 matter. 07156_ Acquired 9 matter. 07172_ Acquired 11 matter. 07192_ Acquired 22 matter. 09262_ T-07 Excavator destroyed. 09272_ Acquired 11 matter. 09388_ Acquired 1 matter. 09453_ K-01 Serf collects debris. 11145_ The unstable cave ceiling collapses. 11145_ Crushed by falling debris. 11145_ Lgt. Assault Rifle destroyed. 11145_ System corrupted by crushing effect (+4). 11145_ Imp. Terrain Scanner destroyed. 11145_ System corrupted by crushing effect (+2). 11176_ System corrupted: Heat flow error (+256). 11180_ The unstable cave ceiling collapses. 11180_ Crushed by falling debris. 11180_ Ion Engine destroyed. 11180_ System corrupted by crushing effect (+4). Map ----- +----------------------------------------------------+ | ???#??#####?###?#### ########| ## #?????#????? | | #???#????? ? ??? # #??#??## ##########???????? | | ##????#?? ? ????? # ##?#??## ########?#?#?????# | | ##???##? ?? ?? #??#?#?# # #???#???##? | | ##?##???? ? ? ? ? # ##?##??# # #??#???##?? | | #??#?##?? ? ?? ?# #???#??# # #??????#?#? | | ?#?####?####???##?## ##?#?### ##??????### | | ??????########??###??#????#### # #????#??### | | #???#??# #?? ??? ??### # #?#?#?####? | | ??#???## #?# ? ?#??## ##########?#??#?#? | | #????#?# ### ?? ? ?##?# ###############?## | | ####??## ##?? ? ? ???### # #?### | | ####???# #?? ? ? ?#??## # ##### | | #??##### #????? ? ??#### #??# | | ??###??# ##? ? ###?# # #### | | ??####?# #?#? ? ? ??#### # ##?# | | ???#?#?# #?#??#####?#?#### ###############?# | | #?##?#?# ############## #?###?#?###?## | | ???##?## # # ## #????##??##### | | ?#??#### # % # ## ############### | | ###??##### ### # # * | | ?#??#?# = | | | #?##??# k ### ########### | | ####### ##### ## < ## ???####?# | | ?##??## ##### ### ## ##???## | | #????## #?#?# ## @########### #????## | | ???#??# #??#### ####??#?#??# ##?#### | | ?##?### ###?#?# # # ###??##??#?## #?????# | | ##?#### # # #####??###???#### #?##?## | | #?#?### # ? # ###?##?##?#?????#########??### | | ?###?## # ## ##?#???#??##??#??#?#???#?#???# | | ####??# # ## ##??##?#?##?#?#?#???#??#????#?# | | #?##?## # ## ##?#?????###?#???#????????#?#?# | | ##??#?# # # #???##?????####?#?##?????###?# | | # ##### # ##########??#????#???????##??# | | # # # #?#????###?###?#?#????# | | # # # ####?####??#?##?##?##?# | | ## ######## ## ######?#??####????????# | | # # ## #?###?#?###?####??##### | | # # ## ?#######??#?######## # | | # ## ?#??#?##??## ## # | | # # ### ################ ## # | | # # ## # | | #? # ###### ## # | | #? # ### ######## ####### ## # | | #?# # # ## #?### ###? # | | # ? # # ## ###?# ###### # | | # # # ## #?### #### | | # ? # # ## #### ### | | # #? # # ## #### | +----------------------------------------------------+ Best States ------------- Heat Dissipation 25 Energy Generation 10 Energy Capacity 250 Matter Stores 300 Matter Capacity 300 Sight Range 16 Terrain Scan Range 16 Terrain Scan Density 10 Evasion (%) 40 Recoil Reduction 2 Item Schematics ----------------- None Robot Schematics ------------------ None Fabricated ------------ Nothing Alien Tech Used ----------------- None Achievements -------------- None Challenges ------------ None Game ------ Seed CryofiberElectrostormLaser Manual? 0 Play Time 00:15:42 Cumulative 241.5 hours Start 2025.05.01 @ 11:03:28 End 2025.05.01 @ 11:11:36 Sessions 0 Manual Loads 0 Difficulty Rogue Special Mode None Game No. 116 Rogue 57 Adventurer 16 Explorer 43 Win Type - Total 33 Types 20/5/2/1/0/1/2/1/1 Lore% 86 Gallery% 88 Achievement% 80 Wizard Run 0 Options --------- Layout 2 ASCII 0 Keyboard 0 Movement Numpad Keybinds 0 Fullscreen 1 Font 32/Tamsyn Map View 50x44 Zoom Use 0% Tactical HUD 1 Map Filters NONE Filters NONE Steam 1 RUN: 604daa68-f98c-4b5d-9cfa-916a51991e9d